[Event "Titled Tuesday Blitz November 9 2021"]
[White "Urazayev, Arystanbek"]
[Black "Maly, Alexey"]
[WhiteFideId "13709810"]
[BlackFideId "14103184"]
[WhiteElo "2321"]
[BlackElo "2294"]
[Result "0-1"]
[Round "06"]
[TimeControl "180+1"]
[Date "2021.11.09"]
[WhiteClock "0:00:34"]
[BlackClock "0:00:43"]

1. e4 {[%clk 0:03:00]}  c6 {[%clk 0:03:00]} 2. d4 {[%clk 0:03:00]}  d5 {[%clk 0:03:00]} 3. Nd2 {[%clk 0:03:00]}  dxe4 {[%clk 0:03:00]} 4. Nxe4 {[%clk 0:03:01]}  Bf5 {[%clk 0:03:00]} 5. Ng3 {[%clk 0:03:01]}  Bg6 {[%clk 0:03:00]} 6. h4 {[%clk 0:03:01]}  h6 {[%clk 0:03:00]} 7. N1e2 {[%clk 0:03:01]}  e6 {[%clk 0:02:59]} 8. Nf4 {[%clk 0:03:02]}  Bh7 {[%clk 0:02:59]} 9. Bc4 {[%clk 0:03:02]}  Nf6 {[%clk 0:02:59]} 10. Qe2 {[%clk 0:03:02]}  Nd5 {[%clk 0:02:56]} 11. Ngh5 {[%clk 0:02:55]}  Nd7 {[%clk 0:02:40]} 12. c3 {[%clk 0:02:48]}  N7b6 {[%clk 0:02:36]} 13. Bb3 {[%clk 0:02:46]}  Qe7 {[%clk 0:02:26]} 14. a4 {[%clk 0:02:42]}  a5 {[%clk 0:02:23]} 15. g3 {[%clk 0:02:34]}  Nxf4 {[%clk 0:02:18]} 16. Nxf4 {[%clk 0:02:28]}  Nd5 {[%clk 0:02:16]} 17. Nh5 {[%clk 0:02:22]}  O-O-O {[%clk 0:02:11]} 18. O-O {[%clk 0:02:15]}  g5 {[%clk 0:02:07]} 19. Bxd5 {[%clk 0:02:01]}  Rxd5 {[%clk 0:02:02]} 20. Be3 {[%clk 0:01:43]}  gxh4 {[%clk 0:01:58]} 21. c4 {[%clk 0:01:44]}  Rd8 {[%clk 0:01:51]} 22. Qd2 {[%clk 0:01:36]}  hxg3 {[%clk 0:01:46]} 23. Nxg3 {[%clk 0:01:35]}  Rg8 {[%clk 0:01:43]} 24. Qxa5 {[%clk 0:01:33]}  Qh4 {[%clk 0:01:36]} 25. Qa8+ {[%clk 0:01:05]}  Kc7 {[%clk 0:01:34]} 26. Qa5+ {[%clk 0:01:06]}  Kb8 {[%clk 0:01:34]} 27. Bf4+ {[%clk 0:01:04]}  Bd6 {[%clk 0:01:27]} 28. Bxd6+ {[%clk 0:01:05]}  Rxd6 {[%clk 0:01:28]} 29. Qe5 {[%clk 0:00:55]}  Qxd4 {[%clk 0:01:23]} 30. Qxd4 {[%clk 0:00:55]}  Rxd4 {[%clk 0:01:24]} 31. Rfd1 {[%clk 0:00:50]}  Rxc4 {[%clk 0:01:16]} 32. Rd7 {[%clk 0:00:51]}  Bg6 {[%clk 0:01:11]} 33. Kf1 {[%clk 0:00:48]}  h5 {[%clk 0:01:04]} 34. Ra3 {[%clk 0:00:48]}  h4 {[%clk 0:01:00]} 35. Rb3 {[%clk 0:00:46]}  Rxa4 {[%clk 0:00:50]} 36. Rbxb7+ {[%clk 0:00:45]}  Ka8 {[%clk 0:00:49]} 37. Ne2 {[%clk 0:00:36]}  Ra1+ {[%clk 0:00:44]} 38. Kg2 {[%clk 0:00:34]}  Be4+ {[%clk 0:00:43]} 0-1


[Site "https://www.chess.com"]

[Event "Titled Tuesday Blitz November 9 2021"]
[White "Visakh N R"]
[Black "Bologan, Victor"]
[WhiteFideId "25012223"]
[BlackFideId "13900048"]
[WhiteElo "2454"]
[BlackElo "2472"]
[Result "1-0"]
[Round "06"]
[TimeControl "180+1"]
[Date "2021.11.09"]
[WhiteClock "0:01:28"]
[BlackClock "0:00:13"]

1. c4 {[%clk 0:03:00]}  e5 {[%clk 0:02:58]} 2. Nc3 {[%clk 0:02:58]}  Nf6 {[%clk 0:02:57]} 3. g3 {[%clk 0:02:57]}  Bb4 {[%clk 0:02:57]} 4. Qb3 {[%clk 0:02:56]}  Nc6 {[%clk 0:02:54]} 5. Bg2 {[%clk 0:02:55]}  Bxc3 {[%clk 0:02:49]} 6. Qxc3 {[%clk 0:02:54]}  d5 {[%clk 0:02:44]} 7. d3 {[%clk 0:02:54]}  O-O {[%clk 0:02:38]} 8. Bg5 {[%clk 0:02:53]}  d4 {[%clk 0:02:35]} 9. Qa3 {[%clk 0:02:53]}  h6 {[%clk 0:02:34]} 10. Bxf6 {[%clk 0:02:53]}  Qxf6 {[%clk 0:02:34]} 11. Nf3 {[%clk 0:02:53]}  Bf5 {[%clk 0:02:14]} 12. O-O {[%clk 0:02:51]}  e4 {[%clk 0:02:12]} 13. Nh4 {[%clk 0:02:50]}  exd3 {[%clk 0:02:07]} 14. exd3 {[%clk 0:02:42]}  Bh7 {[%clk 0:02:06]} 15. Rfe1 {[%clk 0:02:42]}  Ne5 {[%clk 0:01:58]} 16. Be4 {[%clk 0:02:39]}  g5 {[%clk 0:01:50]} 17. Ng2 {[%clk 0:02:28]}  Nf3+ {[%clk 0:01:45]} 18. Bxf3 {[%clk 0:02:26]}  Qxf3 {[%clk 0:01:44]} 19. Re7 {[%clk 0:02:21]}  Qxd3 {[%clk 0:01:19]} 20. Qxd3 {[%clk 0:02:20]}  Bxd3 {[%clk 0:01:19]} 21. Rxc7 {[%clk 0:02:18]}  Be4 {[%clk 0:01:13]} 22. Ne1 {[%clk 0:02:12]}  Rfe8 {[%clk 0:01:00]} 23. Rd1 {[%clk 0:02:09]}  Rad8 {[%clk 0:00:54]} 24. f3 {[%clk 0:01:59]}  Bc6 {[%clk 0:00:51]} 25. Kf2 {[%clk 0:01:59]}  a5 {[%clk 0:00:46]} 26. Nc2 {[%clk 0:01:54]}  d3 {[%clk 0:00:42]} 27. Ne3 {[%clk 0:01:54]}  Re6 {[%clk 0:00:39]} 28. Rd2 {[%clk 0:01:35]}  Red6 {[%clk 0:00:14]} 29. Nf5 {[%clk 0:01:32]}  R6d7 {[%clk 0:00:14]} 30. Ne7+ {[%clk 0:01:31]}  Kg7 {[%clk 0:00:13]} 31. Nxc6 {[%clk 0:01:31]}  bxc6 {[%clk 0:00:14]} 32. Rxd7 {[%clk 0:01:28]}  Rxd7 {[%clk 0:00:14]} 33. Ke3 {[%clk 0:01:29]}  Kf6 {[%clk 0:00:12]} 34. Rxd3 {[%clk 0:01:29]}  Re7+ {[%clk 0:00:13]} 35. Kd2 {[%clk 0:01:29]}  Re5 {[%clk 0:00:13]} 36. Rd6+ {[%clk 0:01:28]} 1-0


[Site "https://www.chess.com"]

[Event "Titled Tuesday Blitz November 9 2021"]
[White "Zubov, Alexander"]
[Black "Kamsky, Gata"]
[WhiteFideId "14109409"]
[BlackFideId "2000024"]
[WhiteElo "2685"]
[BlackElo "2645"]
[Result "0-1"]
[Round "06"]
[TimeControl "180+1"]
[Date "2021.11.09"]
[WhiteClock "0:00:05"]
[BlackClock "0:01:42"]

1. d4 {[%clk 0:03:00]}  Nf6 {[%clk 0:02:55]} 2. c4 {[%clk 0:03:00]}  e6 {[%clk 0:02:55]} 3. Nc3 {[%clk 0:02:59]}  Bb4 {[%clk 0:02:55]} 4. e3 {[%clk 0:02:59]}  O-O {[%clk 0:02:52]} 5. Ne2 {[%clk 0:02:59]}  d5 {[%clk 0:02:51]} 6. a3 {[%clk 0:03:00]}  Bd6 {[%clk 0:02:51]} 7. Ng3 {[%clk 0:02:59]}  c6 {[%clk 0:02:47]} 8. Qc2 {[%clk 0:02:53]}  Nbd7 {[%clk 0:02:41]} 9. Bd2 {[%clk 0:02:47]}  a6 {[%clk 0:02:40]} 10. c5 {[%clk 0:02:42]}  Bc7 {[%clk 0:02:39]} 11. f4 {[%clk 0:02:43]}  Ng4 {[%clk 0:02:37]} 12. Bd3 {[%clk 0:02:35]}  Qh4 {[%clk 0:02:35]} 13. Ne2 {[%clk 0:02:35]}  f5 {[%clk 0:02:22]} 14. h3 {[%clk 0:02:21]}  Ngf6 {[%clk 0:02:22]} 15. O-O {[%clk 0:01:59]}  Ne4 {[%clk 0:02:17]} 16. Be1 {[%clk 0:01:58]}  Qh6 {[%clk 0:02:14]} 17. Nc3 {[%clk 0:01:51]}  g5 {[%clk 0:02:11]} 18. Nge2 {[%clk 0:01:20]}  gxf4 {[%clk 0:02:09]} 19. Nxf4 {[%clk 0:00:59]}  Ndf6 {[%clk 0:02:03]} 20. Nxe4 {[%clk 0:00:54]}  fxe4 {[%clk 0:02:02]} 21. Be2 {[%clk 0:00:54]}  Bd7 {[%clk 0:01:56]} 22. Bc3 {[%clk 0:00:46]}  Kh8 {[%clk 0:01:51]} 23. Kh1 {[%clk 0:00:33]}  Rg8 {[%clk 0:01:49]} 24. Rf2 {[%clk 0:00:29]}  Rg3 {[%clk 0:01:47]} 25. Qd2 {[%clk 0:00:23]}  Rag8 {[%clk 0:01:46]} 26. Bf1 {[%clk 0:00:18]}  Ng4 {[%clk 0:01:44]} 27. Re2 {[%clk 0:00:04]}  Nxe3 {[%clk 0:01:44]} 28. Rxe3 {[%clk 0:00:05]}  Bxf4 {[%clk 0:01:42]} 0-1


[Site "https://www.chess.com"]

[Event "Titled Tuesday Blitz November 9 2021"]
[White "Aloma Vidal, Robert"]
[Black "Llorente Zaro, Alfonso"]
[WhiteFideId "2260409"]
[BlackFideId "2254131"]
[WhiteElo "2435"]
[BlackElo "2480"]
[Result "0-1"]
[Round "07"]
[TimeControl "180+1"]
[Date "2021.11.09"]
[WhiteClock "0:00:09"]
[BlackClock "0:00:12"]

1. e4 {[%clk 0:02:52]}  Nf6 {[%clk 0:03:00]} 2. e5 {[%clk 0:02:51]}  Ng8 {[%clk 0:03:00]} 3. d4 {[%clk 0:02:49]}  d5 {[%clk 0:03:00]} 4. c4 {[%clk 0:02:46]}  e6 {[%clk 0:02:51]} 5. Nc3 {[%clk 0:02:45]}  Ne7 {[%clk 0:02:49]} 6. Nf3 {[%clk 0:02:44]}  b6 {[%clk 0:02:47]} 7. Be2 {[%clk 0:02:40]}  Bb7 {[%clk 0:02:47]} 8. O-O {[%clk 0:02:38]}  Qd7 {[%clk 0:02:47]} 9. c5 {[%clk 0:02:14]}  bxc5 {[%clk 0:02:20]} 10. dxc5 {[%clk 0:02:08]}  Ba6 {[%clk 0:02:19]} 11. b4 {[%clk 0:01:48]}  Bxe2 {[%clk 0:01:57]} 12. Nxe2 {[%clk 0:01:41]}  a5 {[%clk 0:01:53]} 13. b5 {[%clk 0:01:20]}  Qxb5 {[%clk 0:01:49]} 14. Ned4 {[%clk 0:01:19]}  Qd7 {[%clk 0:01:49]} 15. Rb1 {[%clk 0:01:17]}  Nec6 {[%clk 0:01:47]} 16. Rb7 {[%clk 0:01:14]}  Bxc5 {[%clk 0:01:29]} 17. Nb5 {[%clk 0:01:06]}  O-O {[%clk 0:01:29]} 18. Rxc7 {[%clk 0:01:01]}  Qe8 {[%clk 0:01:28]} 19. Qc2 {[%clk 0:00:59]}  Na6 {[%clk 0:01:10]} 20. Ng5 {[%clk 0:00:55]}  g6 {[%clk 0:01:10]} 21. Qc3 {[%clk 0:00:35]}  Nxc7 {[%clk 0:00:40]} 22. Nxc7 {[%clk 0:00:35]}  Qe7 {[%clk 0:00:39]} 23. Qh3 {[%clk 0:00:29]}  h5 {[%clk 0:00:37]} 24. Nxa8 {[%clk 0:00:28]}  Rxa8 {[%clk 0:00:32]} 25. g4 {[%clk 0:00:28]}  Nd4 {[%clk 0:00:32]} 26. Re1 {[%clk 0:00:20]}  Rb8 {[%clk 0:00:25]} 27. gxh5 {[%clk 0:00:20]}  Rb1 {[%clk 0:00:21]} 28. hxg6 {[%clk 0:00:20]}  fxg6 {[%clk 0:00:22]} 29. Qg2 {[%clk 0:00:16]}  Rxc1 {[%clk 0:00:20]} 30. Rxc1 {[%clk 0:00:15]}  Ne2+ {[%clk 0:00:20]} 31. Kf1 {[%clk 0:00:16]}  Nxc1 {[%clk 0:00:21]} 32. Nf3 {[%clk 0:00:15]}  Qe8 {[%clk 0:00:20]} 33. Qg4 {[%clk 0:00:14]}  Nd3 {[%clk 0:00:17]} 34. Ng5 {[%clk 0:00:14]}  Nxe5 {[%clk 0:00:16]} 35. Qh3 {[%clk 0:00:11]}  Qe7 {[%clk 0:00:15]} 36. Nxe6 {[%clk 0:00:11]}  Bd6 {[%clk 0:00:15]} 37. f4 {[%clk 0:00:11]}  Nc4 {[%clk 0:00:13]} 38. Qg2 {[%clk 0:00:09]}  Qxe6 {[%clk 0:00:12]} 0-1


[Site "https://www.chess.com"]

[Event "Titled Tuesday Blitz November 9 2021"]
[White "Andreikin, Dmitry"]
[Black "Holt, Conrad"]
[WhiteFideId "4158814"]
[BlackFideId "2034387"]
[WhiteElo "2736"]
[BlackElo "2586"]
[Result "1-0"]
[Round "07"]
[TimeControl "180+1"]
[Date "2021.11.09"]
[WhiteClock "0:00:39"]
[BlackClock "0:00:01"]

1. d4 {[%clk 0:03:00]}  d5 {[%clk 0:02:59]} 2. Nf3 {[%clk 0:03:00]}  Nf6 {[%clk 0:03:00]} 3. e3 {[%clk 0:03:00]}  c5 {[%clk 0:03:00]} 4. Nbd2 {[%clk 0:02:59]}  Nc6 {[%clk 0:02:55]} 5. c3 {[%clk 0:02:58]}  e6 {[%clk 0:02:51]} 6. Bd3 {[%clk 0:02:58]}  Bd6 {[%clk 0:02:50]} 7. O-O {[%clk 0:02:58]}  O-O {[%clk 0:02:49]} 8. dxc5 {[%clk 0:02:58]}  Bxc5 {[%clk 0:02:48]} 9. b4 {[%clk 0:02:58]}  Bd6 {[%clk 0:02:48]} 10. Bb2 {[%clk 0:02:58]}  a5 {[%clk 0:02:44]} 11. b5 {[%clk 0:02:53]}  Ne7 {[%clk 0:02:42]} 12. c4 {[%clk 0:02:52]}  Ng6 {[%clk 0:02:41]} 13. Rc1 {[%clk 0:02:48]}  Qe7 {[%clk 0:02:38]} 14. cxd5 {[%clk 0:02:32]}  exd5 {[%clk 0:02:37]} 15. h3 {[%clk 0:02:27]}  a4 {[%clk 0:02:34]} 16. Nd4 {[%clk 0:02:25]}  Ne4 {[%clk 0:02:29]} 17. Bxe4 {[%clk 0:02:09]}  dxe4 {[%clk 0:02:28]} 18. Qh5 {[%clk 0:02:10]}  f5 {[%clk 0:02:16]} 19. Rxc8 {[%clk 0:01:49]}  Raxc8 {[%clk 0:02:08]} 20. Nxf5 {[%clk 0:01:49]}  Qd7 {[%clk 0:02:06]} 21. Nxd6 {[%clk 0:01:35]}  Qxd6 {[%clk 0:02:05]} 22. Nxe4 {[%clk 0:01:36]}  Qb4 {[%clk 0:01:49]} 23. Bd4 {[%clk 0:01:15]}  Qe7 {[%clk 0:01:09]} 24. Nc5 {[%clk 0:00:59]}  a3 {[%clk 0:01:04]} 25. f4 {[%clk 0:00:52]}  Qf7 {[%clk 0:00:54]} 26. f5 {[%clk 0:00:43]}  Ne7 {[%clk 0:00:52]} 27. Qg4 {[%clk 0:00:40]}  Nxf5 {[%clk 0:00:01]} 28. Rxf5 {[%clk 0:00:39]} 1-0


[Site "https://www.chess.com"]

[Event "Titled Tuesday Blitz November 9 2021"]
[White "Grischuk, Alexander"]
[Black "Yashmetov, Mikhail"]
[WhiteFideId "4126025"]
[BlackFideId "24198900"]
[WhiteElo "2757"]
[BlackElo "2305"]
[Result "1-0"]
[Round "07"]
[TimeControl "180+1"]
[Date "2021.11.09"]
[WhiteClock "0:01:35"]
[BlackClock "0:00:06"]

1. e4 {[%clk 0:03:00]}  c5 {[%clk 0:02:58]} 2. Nc3 {[%clk 0:03:01]}  g6 {[%clk 0:02:57]} 3. Nf3 {[%clk 0:02:59]}  Bg7 {[%clk 0:02:57]} 4. d4 {[%clk 0:02:59]}  cxd4 {[%clk 0:02:57]} 5. Nxd4 {[%clk 0:03:00]}  Nc6 {[%clk 0:02:57]} 6. Be3 {[%clk 0:03:01]}  Nf6 {[%clk 0:02:57]} 7. Bc4 {[%clk 0:03:01]}  O-O {[%clk 0:02:57]} 8. Bb3 {[%clk 0:03:00]}  Re8 {[%clk 0:02:57]} 9. f4 {[%clk 0:02:44]}  e5 {[%clk 0:02:47]} 10. fxe5 {[%clk 0:02:41]}  Nxe5 {[%clk 0:02:46]} 11. O-O {[%clk 0:02:40]}  a6 {[%clk 0:02:35]} 12. Kh1 {[%clk 0:02:34]}  d6 {[%clk 0:02:30]} 13. Bg5 {[%clk 0:02:26]}  h6 {[%clk 0:02:24]} 14. Bh4 {[%clk 0:02:27]}  g5 {[%clk 0:02:19]} 15. Bg3 {[%clk 0:02:27]}  Bg4 {[%clk 0:02:09]} 16. Qd2 {[%clk 0:02:25]}  Qb6 {[%clk 0:01:50]} 17. Nf5 {[%clk 0:02:23]}  Bxf5 {[%clk 0:01:47]} 18. Rxf5 {[%clk 0:02:24]}  Ng6 {[%clk 0:00:57]} 19. Raf1 {[%clk 0:02:23]}  Nxe4 {[%clk 0:00:35]} 20. Nxe4 {[%clk 0:01:52]}  Rxe4 {[%clk 0:00:34]} 21. Rxf7 {[%clk 0:01:52]}  Kh7 {[%clk 0:00:19]} 22. Qd5 {[%clk 0:01:44]}  Qd4 {[%clk 0:00:05]} 23. Rxg7+ {[%clk 0:01:35]}  Kxg7 {[%clk 0:00:06]} 24. Qxb7+ {[%clk 0:01:35]} 1-0


[Site "https://www.chess.com"]

[Event "Titled Tuesday Blitz November 9 2021"]
[White "Gubajdullin, Alexei"]
[Black "Khanin, Semen"]
[WhiteFideId "4141202"]
[BlackFideId "4111990"]
[WhiteElo "2268"]
[BlackElo "2442"]
[Result "1/2-1/2"]
[Round "07"]
[TimeControl "180+1"]
[Date "2021.11.09"]
[WhiteClock "0:00:26"]
[BlackClock "0:00:04"]

1. d4 {[%clk 0:03:00]}  Nf6 {[%clk 0:02:57]} 2. Nf3 {[%clk 0:03:00]}  g6 {[%clk 0:02:57]} 3. Bf4 {[%clk 0:02:59]}  Bg7 {[%clk 0:02:57]} 4. e3 {[%clk 0:02:58]}  b6 {[%clk 0:02:57]} 5. Be2 {[%clk 0:02:57]}  Bb7 {[%clk 0:02:57]} 6. O-O {[%clk 0:02:58]}  d6 {[%clk 0:02:57]} 7. a4 {[%clk 0:02:57]}  a6 {[%clk 0:02:53]} 8. a5 {[%clk 0:02:55]}  b5 {[%clk 0:02:52]} 9. c4 {[%clk 0:02:55]}  bxc4 {[%clk 0:02:52]} 10. Bxc4 {[%clk 0:02:54]}  O-O {[%clk 0:02:52]} 11. Nc3 {[%clk 0:02:40]}  Nbd7 {[%clk 0:02:46]} 12. b4 {[%clk 0:02:28]}  Ne4 {[%clk 0:02:41]} 13. Nxe4 {[%clk 0:02:24]}  Bxe4 {[%clk 0:02:42]} 14. b5 {[%clk 0:02:13]}  axb5 {[%clk 0:02:41]} 15. Bxb5 {[%clk 0:02:13]}  c6 {[%clk 0:02:41]} 16. Bd3 {[%clk 0:02:00]}  Bxd3 {[%clk 0:02:41]} 17. Qxd3 {[%clk 0:02:00]}  Rxa5 {[%clk 0:02:42]} 18. Rxa5 {[%clk 0:01:59]}  Qxa5 {[%clk 0:02:42]} 19. Qe4 {[%clk 0:01:58]}  e5 {[%clk 0:02:27]} 20. dxe5 {[%clk 0:01:57]}  dxe5 {[%clk 0:02:26]} 21. Bg3 {[%clk 0:01:54]}  Qd5 {[%clk 0:02:14]} 22. Qc2 {[%clk 0:01:53]}  e4 {[%clk 0:02:12]} 23. Rd1 {[%clk 0:01:50]}  Qf5 {[%clk 0:01:44]} 24. Nh4 {[%clk 0:01:48]}  Qe6 {[%clk 0:01:44]} 25. Rd6 {[%clk 0:01:48]}  Qe7 {[%clk 0:01:34]} 26. Qxc6 {[%clk 0:01:47]}  Ne5 {[%clk 0:01:31]} 27. Qd5 {[%clk 0:01:42]}  Nd3 {[%clk 0:01:12]} 28. h3 {[%clk 0:01:28]}  Bf6 {[%clk 0:00:35]} 29. Rd7 {[%clk 0:01:21]}  Qe6 {[%clk 0:00:36]} 30. Qxe6 {[%clk 0:01:04]}  fxe6 {[%clk 0:00:36]} 31. Nf3 {[%clk 0:00:59]}  exf3 {[%clk 0:00:20]} 32. Rxd3 {[%clk 0:00:59]}  fxg2 {[%clk 0:00:19]} 33. Kxg2 {[%clk 0:00:59]}  Rf7 {[%clk 0:00:19]} 34. Rd6 {[%clk 0:00:55]}  Re7 {[%clk 0:00:19]} 35. Kf3 {[%clk 0:00:54]}  Kf7 {[%clk 0:00:19]} 36. Ke4 {[%clk 0:00:54]}  Rb7 {[%clk 0:00:20]} 37. Ra6 {[%clk 0:00:51]}  g5 {[%clk 0:00:19]} 38. Rc6 {[%clk 0:00:47]}  h5 {[%clk 0:00:19]} 39. Rc7+ {[%clk 0:00:32]}  Rxc7 {[%clk 0:00:19]} 40. Bxc7 {[%clk 0:00:31]}  Kg6 {[%clk 0:00:19]} 41. f3 {[%clk 0:00:31]}  Bb2 {[%clk 0:00:16]} 42. Be5 {[%clk 0:00:30]}  Bc1 {[%clk 0:00:15]} 43. Bd4 {[%clk 0:00:30]}  Bd2 {[%clk 0:00:12]} 44. Ke5 {[%clk 0:00:29]}  Kf7 {[%clk 0:00:10]} 45. Kd6 {[%clk 0:00:29]}  Bb4+ {[%clk 0:00:08]} 46. Kd7 {[%clk 0:00:29]}  Be1 {[%clk 0:00:06]} 47. e4 {[%clk 0:00:28]}  Bg3 {[%clk 0:00:06]} 48. Be3 {[%clk 0:00:27]}  Kf6 {[%clk 0:00:04]} 49. Bd4+ {[%clk 0:00:27]}  Kf7 {[%clk 0:00:04]} 50. Bc3 {[%clk 0:00:27]}  Bf4 {[%clk 0:00:04]} 51. Bd4 {[%clk 0:00:26]}  Bg3 {[%clk 0:00:04]} 1/2-1/2


[Site "https://www.chess.com"]

[Event "Titled Tuesday Blitz November 9 2021"]
[White "Harshavardhan G B"]
[Black "Ozen, Deniz"]
[WhiteFideId "25059009"]
[BlackFideId "6349196"]
[WhiteElo "1825"]
[BlackElo "2326"]
[Result "1-0"]
[Round "07"]
[TimeControl "180+1"]
[Date "2021.11.09"]
[WhiteClock "0:01:01"]
[BlackClock "0:00:09"]

1. d4 {[%clk 0:03:00]}  d5 {[%clk 0:03:00]} 2. c4 {[%clk 0:02:54]}  c6 {[%clk 0:03:00]} 3. Nf3 {[%clk 0:02:53]}  Nf6 {[%clk 0:03:00]} 4. Nc3 {[%clk 0:02:53]}  dxc4 {[%clk 0:03:00]} 5. a4 {[%clk 0:02:53]}  Bf5 {[%clk 0:03:01]} 6. Ne5 {[%clk 0:02:53]}  Nbd7 {[%clk 0:03:00]} 7. Nxc4 {[%clk 0:02:52]}  e6 {[%clk 0:02:58]} 8. g3 {[%clk 0:02:50]}  Bb4 {[%clk 0:02:54]} 9. Bg2 {[%clk 0:02:50]}  O-O {[%clk 0:02:45]} 10. O-O {[%clk 0:02:49]}  h6 {[%clk 0:02:39]} 11. a5 {[%clk 0:02:46]}  Qe7 {[%clk 0:02:12]} 12. Qb3 {[%clk 0:02:39]}  Bxc3 {[%clk 0:01:23]} 13. bxc3 {[%clk 0:02:36]}  Be4 {[%clk 0:01:15]} 14. Ba3 {[%clk 0:02:32]}  c5 {[%clk 0:01:15]} 15. Bxe4 {[%clk 0:02:30]}  Nxe4 {[%clk 0:01:15]} 16. f3 {[%clk 0:02:26]}  Nd6 {[%clk 0:01:07]} 17. Nxd6 {[%clk 0:02:25]}  Qxd6 {[%clk 0:01:08]} 18. Qxb7 {[%clk 0:02:24]}  Rfb8 {[%clk 0:01:08]} 19. Qe4 {[%clk 0:02:24]}  Qc7 {[%clk 0:01:07]} 20. Rfd1 {[%clk 0:02:18]}  Rc8 {[%clk 0:01:00]} 21. Kg2 {[%clk 0:01:58]}  Nf6 {[%clk 0:00:59]} 22. Qd3 {[%clk 0:01:56]}  cxd4 {[%clk 0:00:58]} 23. cxd4 {[%clk 0:01:56]}  Qxa5 {[%clk 0:00:57]} 24. Be7 {[%clk 0:01:51]}  Qc7 {[%clk 0:00:53]} 25. Bxf6 {[%clk 0:01:50]}  gxf6 {[%clk 0:00:54]} 26. Qe3 {[%clk 0:01:50]}  Kg7 {[%clk 0:00:54]} 27. d5 {[%clk 0:01:50]}  Qc3 {[%clk 0:00:52]} 28. Qf4 {[%clk 0:01:40]}  Rc4 {[%clk 0:00:34]} 29. Qd6 {[%clk 0:01:35]}  Qb4 {[%clk 0:00:24]} 30. dxe6 {[%clk 0:01:32]}  Qxd6 {[%clk 0:00:23]} 31. Rxd6 {[%clk 0:01:33]}  fxe6 {[%clk 0:00:22]} 32. Rxe6 {[%clk 0:01:33]}  a5 {[%clk 0:00:22]} 33. e4 {[%clk 0:01:25]}  a4 {[%clk 0:00:21]} 34. Ra3 {[%clk 0:01:24]}  Rb4 {[%clk 0:00:18]} 35. g4 {[%clk 0:01:20]}  Rb3 {[%clk 0:00:18]} 36. Rxb3 {[%clk 0:01:19]}  axb3 {[%clk 0:00:18]} 37. Rb6 {[%clk 0:01:19]}  Ra2+ {[%clk 0:00:19]} 38. Kg3 {[%clk 0:01:18]}  b2 {[%clk 0:00:17]} 39. h4 {[%clk 0:01:18]}  Kf7 {[%clk 0:00:17]} 40. Kf4 {[%clk 0:01:16]}  Ke7 {[%clk 0:00:17]} 41. Kf5 {[%clk 0:01:13]}  Kd7 {[%clk 0:00:16]} 42. Kg6 {[%clk 0:01:10]}  Kc7 {[%clk 0:00:16]} 43. Rb4 {[%clk 0:01:08]}  Kc6 {[%clk 0:00:15]} 44. Kxh6 {[%clk 0:01:07]}  Kc5 {[%clk 0:00:16]} 45. Rb8 {[%clk 0:01:07]}  Kc4 {[%clk 0:00:17]} 46. Kg6 {[%clk 0:01:05]}  Kc3 {[%clk 0:00:17]} 47. h5 {[%clk 0:01:05]}  Ra1 {[%clk 0:00:17]} 48. h6 {[%clk 0:01:04]}  Rh1 {[%clk 0:00:12]} 49. h7 {[%clk 0:01:03]}  Rh3 {[%clk 0:00:09]} 50. Kg7 {[%clk 0:01:01]} 1-0


[Site "https://www.chess.com"]